bitfinex/quotes_BTCUSD_20250726
["timestamp","ask_amount","ask_price","bid_price","bid_amount"]
[1753505333617,0.12856,117580.0,117570.0,0.52083211]
[1753505337484,0.13706426,117580.0,117570.0,0.52083211]
[1753505337697,0.12856,117580.0,117570.0,0.52083211]
[1753505337879,0.13706426,117580.0,117570.0,0.52083211]
[1753505338083,0.12856,117580.0,117570.0,0.52083211]
[1753505338296,0.13706419,117580.0,117570.0,0.52083211]
[1753505338769,0.13706419,117580.0,117570.0,0.23685238]
[1753505339026,0.14556845,117580.0,117570.0,0.56564709]
[1753505339274,0.13706419,117580.0,117570.0,0.56564709]
[1753505339502,0.13706419,117580.0,117570.0,0.28166736]
[1753505341269,0.14556845,117580.0,117570.0,0.28166736]
[1753505341723,0.13706419,117580.0,117570.0,0.28166736]
[1753505344415,0.13706419,117580.0,117570.0,0.56564709]
[1753505346753,0.12856,117580.0,117570.0,0.56564709]
[1753505347215,0.13706419,117580.0,117570.0,0.56564709]
[1753505349237,0.12856,117580.0,117570.0,0.56564709]
[1753505350118,0.13706426,117580.0,117570.0,0.56564709]
[1753505350545,0.12856,117580.0,117570.0,0.56564709]
[1753505350772,0.13706419,117580.0,117570.0,0.56564709]
[1753505350998,0.12856,117580.0,117570.0,0.56564709]
[1753505352892,0.13706426,117580.0,117570.0,0.56564709]
[1753505353135,0.12856,117580.0,117570.0,0.56564709]
[1753505353531,0.13706426,117580.0,117570.0,0.56564709]
[1753505354229,0.13706426,117580.0,117570.0,0.005]
[1753505354230,1.38516191,117580.0,117570.0,0.005]
[1753505354448,1.10118218,117580.0,117570.0,0.005]
[1753505356190,0.55001684,117570.0,117560.0,0.0004]
[1753505356420,0.84449192,117570.0,117560.0,0.17052589]
[1753505356635,0.86780192,117570.0,117560.0,0.17052589]
[1753505357519,0.91378937,117570.0,117560.0,0.17052589]
[1753505357706,0.90528402,117570.0,117560.0,0.17052589]
[1753505357904,0.90528402,117570.0,117560.0,0.17252589]
[1753505358147,0.90528402,117570.0,117560.0,0.0034]
[1753505359941,0.85929657,117570.0,117560.0,0.17352589]
[1753505362767,0.85929657,117570.0,117560.0,0.0034]
[1753505367978,0.85929657,117570.0,117560.0,0.17352589]
[1753505369918,0.85929657,117570.0,117560.0,0.19945589]
[1753505370724,0.84369657,117570.0,117560.0,0.19945589]
[1753505370923,0.84369657,117570.0,117560.0,0.02933]
[1753505371134,0.85999657,117570.0,117560.0,0.0034]
[1753505371772,0.88314617,117570.0,117560.0,0.0034]
[1753505372407,1.01170617,117570.0,117560.0,0.0034]
[1753505372750,0.99540617,117570.0,117560.0,0.0034]
[1753505373154,0.99540617,117570.0,117560.0,0.17352589]
[1753505373970,0.99540617,117570.0,117560.0,0.19945589]
[1753505374373,0.99540617,117570.0,117560.0,0.02933]
[1753505374574,0.99540617,117570.0,117560.0,0.0034]
[1753505374800,1.01170617,117570.0,117560.0,0.0034]
[1753505375708,1.40012222,117570.0,117560.0,0.0034]
[1753505376526,0.83216276,117570.0,117560.0,0.0034]
[1753505376997,1.40012222,117570.0,117560.0,0.0034]
[1753505377405,1.11614249,117570.0,117560.0,0.0034]
[1753505377825,1.11614249,117570.0,117560.0,0.0014]
[1753505378324,1.11363249,117570.0,117560.0,0.0004]
[1753505378860,1.11563249,117570.0,117560.0,0.0004]
[1753505380152,1.40212222,117570.0,117560.0,0.0004]
[1753505385178,1.42789056,117570.0,117560.0,0.0004]
[1753505387314,1.14140083,117570.0,117560.0,0.0004]
[1753505389443,1.42538056,117570.0,117560.0,0.0004]
[1753505389852,1.14140083,117570.0,117560.0,0.0004]
[1753505392887,1.42538056,117570.0,117560.0,0.0004]
[1753505397814,1.14140083,117570.0,117560.0,0.0004]
[1753505399791,1.42538056,117570.0,117560.0,0.0004]
[1753505400867,1.42789056,117570.0,117560.0,0.0004]
[1753505401570,1.42538056,117570.0,117560.0,0.0004]
[1753505406094,1.14140083,117570.0,117560.0,0.0004]
[1753505408528,1.42538056,117570.0,117560.0,0.0004]
[1753505411123,1.40908056,117570.0,117560.0,0.0004]
[1753505415267,1.12510083,117570.0,117560.0,0.0004]
[1753505417431,1.4956181,117570.0,117560.0,0.0004]
[1753505417652,1.50006121,117570.0,117560.0,0.0004]
[1753505417839,1.54755466,117570.0,117560.0,0.0004]
[1753505418257,1.53160015,117570.0,117560.0,0.0004]
[1753505419352,1.52561721,117570.0,117560.0,0.0004]
[1753505420910,1.57669721,117570.0,117560.0,0.0004]
[1753505427391,1.91067694,117570.0,117560.0,0.0004]
[1753505427838,1.57669721,117570.0,117560.0,0.0004]
[1753505428024,1.62669721,117570.0,117560.0,0.0004]
[1753505428936,1.63266625,117570.0,117560.0,0.0004]
[1753505429234,1.63066625,117570.0,117560.0,0.0004]
[1753505429495,1.63266625,117570.0,117560.0,0.0004]
[1753505429706,1.63366625,117570.0,117560.0,0.0004]
[1753505430104,1.62769721,117570.0,117560.0,0.0004]
[1753505430411,1.57769721,117570.0,117560.0,0.0004]
[1753505430613,1.62769721,117570.0,117560.0,0.0004]
[1753505431227,1.57769721,117570.0,117560.0,0.0004]
[1753505431438,1.62769721,117570.0,117560.0,0.0004]
[1753505432832,1.57769721,117570.0,117560.0,0.0004]
[1753505433011,1.62769721,117570.0,117560.0,0.0004]
[1753505433796,1.63366432,117570.0,117560.0,0.0004]
[1753505435539,1.63366412,117570.0,117560.0,0.0004]
[1753505436615,1.58366412,117570.0,117560.0,0.0004]
[1753505436845,1.63366412,117570.0,117560.0,0.0004]
[1753505437093,1.58366412,117570.0,117560.0,0.0004]
[1753505439323,1.57769721,117570.0,117560.0,0.0004]
[1753505439520,1.5836648,117570.0,117560.0,0.0004]
[1753505440257,1.5836649,117570.0,117560.0,0.0004]
[1753505441244,1.59958175,117570.0,117560.0,0.0004]
[1753505442555,1.59958133,117570.0,117560.0,0.0004]
[1753505443083,1.59707133,117570.0,117560.0,0.0004]
[1753505446527,1.59707747,117570.0,117560.0,0.0004]
[1753505447424,1.57130913,117570.0,117560.0,0.0004]
[1753505451595,1.5967153,117570.0,117560.0,0.0004]
[1753505453076,1.60468541,117570.0,117560.0,0.0004]
[1753505455655,1.88866514,117570.0,117560.0,0.0004]
[1753505456092,1.60468541,117570.0,117560.0,0.0004]
[1753505456556,1.60719541,117570.0,117560.0,0.0004]
[1753505456766,1.89117514,117570.0,117560.0,0.0004]
[1753505456985,1.60719541,117570.0,117560.0,0.0004]
[1753505457521,1.60720076,117570.0,117560.0,0.0004]
[1753505457950,1.60469076,117570.0,117560.0,0.0004]
[1753505465378,1.60469262,117570.0,117560.0,0.0004]
[1753505466947,1.58080422,117570.0,117560.0,0.0004]
[1753505467155,1.60471954,117570.0,117560.0,0.0004]
[1753505469557,1.93869927,117570.0,117560.0,0.0004]
[1753505469753,1.94120927,117570.0,117560.0,0.0004]
[1753505469979,0.55148105,117560.0,117550.0,0.02806]
[1753505470199,1.44078784,117560.0,117550.0,0.03005]
[1753505470422,1.46430784,117560.0,117550.0,0.03005]
[1753505470761,1.48986684,117560.0,117550.0,0.03005]
[1753505471430,1.54094684,117560.0,117550.0,0.03005]
[1753505471661,1.55905684,117560.0,117550.0,0.0004]
[1753505472121,1.55654684,117560.0,117550.0,0.0004]
[1753505472578,1.55754684,117560.0,117550.0,0.0004]
[1753505473783,1.56054684,117560.0,117550.0,0.0004]
[1753505474481,1.56254684,117560.0,117550.0,0.0004]
[1753505476575,1.57051464,117560.0,117550.0,0.0004]
[1753505478548,1.56254684,117560.0,117550.0,0.0004]
[1753505479433,1.61505684,117560.0,117550.0,0.0004]
[1753505480096,1.61254684,117560.0,117550.0,0.0004]
[1753505482903,1.59694684,117560.0,117550.0,0.02793]
[1753505483314,1.59694684,117560.0,117550.0,0.0004]
[1753505485512,1.3844428,117560.0,117550.0,0.02793]
[1753505485699,1.05046307,117560.0,117550.0,0.05943]
[1753505485892,0.68504809,117560.0,117550.0,0.05943]
[1753505486255,0.81356809,117560.0,117550.0,0.05943]
[1753505486462,1.04249711,117560.0,117550.0,0.05943]
[1753505486874,1.17101711,117560.0,117550.0,0.05943]
[1753505488534,1.17100354,117560.0,117550.0,0.05943]
[1753505489197,1.04248354,117560.0,117550.0,0.05943]
[1753505489451,1.17096354,117560.0,117550.0,0.05943]
[1753505491308,1.17926588,117560.0,117550.0,0.05943]
[1753505492142,1.24689342,117560.0,117550.0,0.05943]
[1753505493367,1.24689499,117560.0,117550.0,0.05943]
[1753505500386,1.23095948,117560.0,117550.0,0.05943]
[1753505500821,1.16333194,117560.0,117550.0,0.05943]
[1753505500994,1.1550296,117560.0,117550.0,0.05943]
[1753505504329,1.1550296,117560.0,117550.0,0.04363]
[1753505504616,1.1799596,117560.0,117550.0,0.04363]
[1753505504824,1.18855756,117560.0,117550.0,0.04363]
[1753505506076,1.18855651,117560.0,117550.0,0.04363]
[1753505510037,1.18855651,117560.0,117550.0,0.02793]
[1753505511382,0.90457678,117560.0,117550.0,0.02793]
[1753505511602,1.18855651,117560.0,117550.0,0.02793]
[1753505512517,1.17995855,117560.0,117550.0,0.02793]
[1753505515488,1.19590041,117560.0,117550.0,0.02793]
[1753505516148,1.20440151,117560.0,117550.0,0.02793]
[1753505517627,1.18845965,117560.0,117550.0,0.02793]
[1753505517846,1.20440309,117560.0,117550.0,0.02793]
[1753505522481,1.20440979,117560.0,117550.0,0.02793]
[1753505526994,1.20440979,117560.0,117550.0,0.0004]
[1753505527533,1.20440967,117560.0,117550.0,0.0004]
[1753505528637,1.20441446,117560.0,117550.0,0.0004]
[1753505529069,1.07593446,117560.0,117550.0,0.0004]
[1753505529284,1.20449446,117560.0,117550.0,0.0004]
[1753505530171,1.07593446,117560.0,117550.0,0.0004]
[1753505530379,1.20449446,117560.0,117550.0,0.0004]
[1753505531920,1.07593446,117560.0,117550.0,0.0004]
[1753505532135,1.20449446,117560.0,117550.0,0.0004]
[1753505535100,1.20445446,117560.0,117550.0,0.0004]
[1753505535314,1.20445446,117560.0,117550.0,0.02433]
[1753505537320,1.20445415,117560.0,117550.0,0.02433]
[1753505538171,1.07593415,117560.0,117550.0,0.0004]
[1753505538398,1.20445415,117560.0,117550.0,0.0004]
[1753505539323,1.20445415,117560.0,117550.0,0.02433]
[1753505542767,1.20445415,117560.0,117550.0,0.02737]
[1753505543174,1.20445427,117560.0,117550.0,0.02737]
[1753505545940,1.20445427,117560.0,117550.0,0.02935]
[1753505551994,1.2044546,117560.0,117550.0,0.02935]
[1753505552430,1.2044546,117560.0,117550.0,0.00542]
[1753505552653,1.2044546,117560.0,117550.0,0.00344]
[1753505556434,1.2044546,117560.0,117550.0,0.0004]
[1753505560543,1.20445625,117560.0,117550.0,0.0004]
[1753505566660,1.19847517,117560.0,117550.0,0.0004]
[1753505566864,1.20445638,117560.0,117550.0,0.0004]
[1753505569477,1.17889738,117560.0,117550.0,0.0004]
[1753505572094,1.15696648,117560.0,117550.0,0.0004]
[1753505572343,1.17890289,117560.0,117550.0,0.0004]
[1753505577478,1.17040179,117560.0,117550.0,0.0004]
[1753505578352,1.17040593,117560.0,117550.0,0.0004]
[1753505580215,0.8864262,117560.0,117550.0,0.0004]
[1753505580428,1.17902012,117560.0,117550.0,0.0004]
[1753505580942,1.17902071,117560.0,117550.0,0.0004]
[1753505582047,1.17898071,117560.0,117550.0,0.00252]
[1753505582289,1.17898071,117560.0,117550.0,0.02868]
[1753505584725,1.15603071,117560.0,117550.0,0.04528]
[1753505584955,1.02557071,117560.0,117550.0,0.04528]
[1753505585179,1.05361664,117560.0,117550.0,0.06058]
[1753505585417,0.91915227,117560.0,117550.0,0.06058]
[1753505585887,1.04763227,117560.0,117550.0,0.06058]
[1753505586369,1.04563227,117560.0,117550.0,0.06058]
[1753505586599,1.04763227,117560.0,117550.0,0.06058]
[1753505587339,1.04363227,117560.0,117550.0,0.06058]
[1753505589815,1.12810957,117560.0,117550.0,0.06058]
[1753505597383,0.99962957,117560.0,117550.0,0.06058]
[1753505597602,1.11949538,117560.0,117550.0,0.06058]
[1753505603758,1.12783257,117560.0,117550.0,0.06058]
[1753505603888,1.04335527,117560.0,117550.0,0.06058]
[1753505607779,1.05186134,117560.0,117550.0,0.06058]
[1753505612575,1.07644134,117560.0,117550.0,0.06058]
[1753505614684,1.07644134,117560.0,117550.0,0.04528]
[1753505614940,1.07644134,117560.0,117550.0,0.02868]
[1753505615168,0.94796134,117560.0,117550.0,0.02868]
[1753505615401,1.07644134,117560.0,117550.0,0.05938]
[1753505616349,1.07644134,117560.0,117550.0,0.04388]
[1753505616758,1.16091864,117560.0,117550.0,0.04388]
[1753505620526,1.05384134,117560.0,117550.0,0.05898]
[1753505620727,1.07644134,117560.0,117550.0,0.05898]
[1753505623121,1.07644134,117560.0,117550.0,0.04388]
[1753505629709,1.07644134,117560.0,117550.0,0.02868]
[1753505637690,0.92338134,117560.0,117550.0,0.06048]
[1753505637958,0.62195259,117560.0,117550.0,0.23062036]
[1753505638179,0.24043537,117560.0,117550.0,0.23062036]
[1753505638357,0.58894166,117560.0,117550.0,0.52310703]
[1753505638615,0.58894166,117560.0,117550.0,0.51460009]
[1753505638837,0.58694166,117560.0,117550.0,0.23912737]
[1753505639058,0.58694166,117560.0,117550.0,0.51460009]
[1753505639481,0.75706755,117560.0,117550.0,0.23062036]
[1753505639707,0.75706755,117560.0,117550.0,0.51460009]
[1753505639924,0.57843537,117560.0,117550.0,0.5231071]
[1753505640144,0.44999537,117560.0,117550.0,0.51660009]
[1753505640353,0.57843537,117560.0,117550.0,0.51660009]
[1753505640575,0.34850564,117560.0,117550.0,0.61423908]
[1753505640804,0.46844,117560.0,117550.0,0.55062727]
[1753505641041,0.34,117560.0,117550.0,0.55062727]
[1753505641272,0.14545034,117570.0,117560.0,0.20082589]
[1753505641486,0.48545026,117570.0,117560.0,0.53998391]
[1753505641978,0.46844,117570.0,117560.0,0.53998391]
[1753505642194,0.13694506,117570.0,117560.0,0.54848969]
[1753505642416,0.47694506,117570.0,117560.0,0.54848969]
[1753505642640,0.47694506,117570.0,117560.0,0.53147798]
[1753505642641,0.48545019,117570.0,117560.0,0.53147798]
[1753505642879,0.48545019,117570.0,117560.0,0.53998391]
[1753505643104,0.48545019,117570.0,117560.0,0.33661317]
[1753505643105,0.47694506,117570.0,117560.0,0.33661317]
[1753505643329,0.48545026,117570.0,117560.0,0.62159297]
[1753505643559,0.48545026,117570.0,117560.0,0.62059297]
[1753505643927,0.48645026,117570.0,117560.0,0.62359297]
[1753505644194,0.49495568,117570.0,117560.0,0.59807497]
[1753505644416,0.49395568,117570.0,117560.0,0.59807497]
[1753505644617,0.49395568,117570.0,117560.0,0.61508733]
[1753505644792,0.48545026,117570.0,117560.0,0.61608733]
[1753505644951,0.49395561,117570.0,117560.0,0.61608733]
[1753505645370,0.48545026,117570.0,117560.0,0.6245934]
[1753505645582,0.49395561,117570.0,117560.0,0.6245934]
[1753505645994,0.35701026,117570.0,117560.0,0.6330994]
[1753505646188,0.48545026,117570.0,117560.0,0.62459311]
[1753505646448,0.49395561,117570.0,117560.0,0.61608711]
[1753505646621,0.48545026,117570.0,117560.0,0.62459304]
[1753505646844,0.48545026,117570.0,117560.0,0.62459311]
[1753505647053,0.48545026,117570.0,117560.0,0.33210738]
[1753505647253,0.48545026,117570.0,117560.0,0.61608711]
[1753505647459,0.48545026,117570.0,117560.0,0.62459311]
[1753505647666,0.48545026,117570.0,117560.0,0.63309904]
[1753505648096,0.48545026,117570.0,117560.0,0.76153904]
[1753505648529,0.48545026,117570.0,117560.0,0.75303311]
[1753505649402,0.49395561,117570.0,117560.0,0.74452711]
[1753505649618,0.48545026,117570.0,117560.0,0.76153904]
[1753505649916,0.48545026,117570.0,117560.0,0.75303311]
[1753505650546,0.49395561,117570.0,117560.0,0.74452711]
[1753505650912,0.50246103,117570.0,117560.0,0.73602104]
[1753505651149,0.49395561,117570.0,117560.0,0.73602104]
[1753505651376,0.49395554,117570.0,117560.0,0.74452711]
[1753505651577,0.50246096,117570.0,117560.0,0.73602104]
[1753505652100,0.50246096,117570.0,117560.0,0.7275149]
[1753505652882,0.50246096,117570.0,117560.0,0.73602104]
[1753505653531,0.50246096,117570.0,117560.0,0.7275149]
[1753505654730,0.50246096,117570.0,117560.0,0.73602104]
[1753505655268,0.50246096,117570.0,117560.0,0.7275149]
[1753505655945,0.50246096,117570.0,117560.0,0.73602104]
[1753505656156,0.51096653,117570.0,117560.0,0.65541184]
[1753505657031,0.50246096,117570.0,117560.0,0.65541184]
[1753505657642,0.50246096,117570.0,117560.0,0.66391798]
[1753505658072,0.37402096,117570.0,117560.0,0.66391798]
[1753505658287,0.37402096,117570.0,117560.0,0.65541184]
[1753505658663,0.37402096,117570.0,117560.0,0.66391798]
[1753505659117,0.37402096,117570.0,117560.0,0.65541184]
[1753505659336,0.37402096,117570.0,117560.0,0.66391798]
[1753505660710,0.37402096,117570.0,117560.0,0.67242405]
[1753505661715,0.37402089,117570.0,117560.0,0.67242405]
[1753505662696,0.37402096,117570.0,117560.0,0.67242405]
[1753505662905,0.36551554,117570.0,117560.0,0.68093005]
[1753505663583,0.37402096,117570.0,117560.0,0.66391798]
[1753505665161,0.37402096,117570.0,117560.0,0.67242405]
[1753505665340,0.36551554,117570.0,117560.0,0.68093005]
[1753505665500,0.36551554,117570.0,117560.0,0.67242405]
[1753505665719,0.37402096,117570.0,117560.0,0.67242405]
[1753505666721,0.37402096,117570.0,117560.0,0.37143211]
[1753505666941,0.37402096,117570.0,117560.0,0.66391798]
[1753505667646,0.37402096,117570.0,117560.0,0.67242405]
[1753505669212,0.37402089,117570.0,117560.0,0.67242405]
[1753505669653,0.35701026,117570.0,117560.0,0.68093005]
[1753505669870,0.35701026,117570.0,117560.0,0.68943598]
[1753505670498,0.35701026,117570.0,117560.0,0.68093005]
[1753505670771,0.35701026,117570.0,117560.0,0.68943598]
[1753505671322,0.36551561,117570.0,117560.0,0.68093005]
[1753505671544,0.36551561,117570.0,117560.0,0.67242405]
[1753505671749,0.36551561,117570.0,117560.0,0.68093005]
[1753505671952,0.36551561,117570.0,117560.0,0.67242405]
[1753505672153,0.35701026,117570.0,117560.0,0.68092998]
[1753505672812,0.35701026,117570.0,117560.0,0.68093005]
[1753505672995,0.36551561,117570.0,117560.0,0.67242405]
[1753505673358,0.35701026,117570.0,117560.0,0.67242405]
[1753505673569,0.36551554,117570.0,117560.0,0.68093005]
[1753505674657,0.36551554,117570.0,117560.0,0.67242405]
[1753505675730,0.36551554,117570.0,117560.0,0.68093005]
[1753505676167,0.36551554,117570.0,117560.0,0.67242405]
[1753505676422,0.37402096,117570.0,117560.0,0.66391798]
[1753505677728,0.37402096,117570.0,117560.0,0.67242405]
[1753505678162,0.36551554,117570.0,117560.0,0.68093005]
[1753505678584,0.36551554,117570.0,117560.0,0.39695032]
[1753505678793,0.36551554,117570.0,117560.0,0.68093005]
[1753505679425,0.36551554,117570.0,117560.0,0.68943598]
[1753505679637,0.35701026,117570.0,117560.0,0.68092976]
[1753505679890,0.35701026,117570.0,117560.0,0.68943562]
[1753505680105,0.35701026,117570.0,117560.0,0.68092976]
[1753505681361,0.35701026,117570.0,117560.0,0.68943562]
[1753505682493,0.35701026,117570.0,117560.0,0.68092976]
[1753505683216,0.35701026,117570.0,117560.0,0.67242383]
[1753505683448,0.35701026,117570.0,117560.0,0.68092976]
[1753505683849,0.34850506,117570.0,117560.0,0.68092976]
[1753505684070,0.35701019,117570.0,117560.0,0.68943562]
[1753505684292,0.35701019,117570.0,117560.0,0.68092976]
[1753505684515,0.35701019,117570.0,117560.0,0.68943562]
[1753505684724,0.35701019,117570.0,117560.0,0.68092976]
[1753505684854,0.36551539,117570.0,117560.0,0.68092976]
[1753505685304,0.36551539,117570.0,117560.0,0.68943562]
[1753505685533,0.36551539,117570.0,117560.0,0.68092976]
[1753505685883,0.36551539,117570.0,117560.0,0.68943562]
[1753505686237,0.36551539,117570.0,117560.0,0.68092976]
[1753505686812,0.34850506,117570.0,117560.0,0.68092976]
[1753505687163,0.34850506,117570.0,117560.0,0.68943562]
[1753505687624,0.35701026,117570.0,117560.0,0.68943562]
[1753505688044,0.35701019,117570.0,117560.0,0.68943562]
[1753505688301,0.35701019,117570.0,117560.0,0.68943526]
[1753505688520,0.35701019,117570.0,117560.0,0.68092948]
[1753505688986,0.35701019,117570.0,117560.0,0.67242362]
[1753505689715,0.36551539,117570.0,117560.0,0.67242362]
[1753505689944,0.36551539,117570.0,117560.0,0.68092948]
[1753505690317,0.36551539,117570.0,117560.0,0.67242362]
[1753505690923,0.35701019,117570.0,117560.0,0.68092948]
[1753505691125,0.34,117570.0,117560.0,0.68943526]
[1753505691774,0.1454086,117580.0,117570.0,0.17861691]
[1753505691979,0.58689508,117580.0,117570.0,0.50762741]
[1753505692193,0.58689508,117580.0,117570.0,0.51613269]
[1753505693094,0.58689508,117580.0,117570.0,0.50762741]
[1753505693465,0.58689508,117580.0,117570.0,0.51713269]
[1753505694095,0.57839038,117580.0,117570.0,0.51713269]
[1753505694309,0.57839038,117580.0,117570.0,0.52563789]
[1753505694524,0.49391308,117580.0,117570.0,0.51713269]
[1753505694821,0.49391308,117580.0,117570.0,0.52563789]
[1753505695290,0.49391308,117580.0,117570.0,0.51713269]
[1753505696140,0.49391308,117580.0,117570.0,0.52563789]
[1753505696350,0.49391308,117580.0,117570.0,0.51713269]
[1753505696575,0.49391308,117580.0,117570.0,0.53233269]
[1753505696809,0.49391308,117580.0,117570.0,0.54083753]
[1753505697021,0.4684,117580.0,117570.0,0.63683372]
[1753505697252,0.49391972,117590.0,117580.0,0.18710649]
[1753505697489,0.49391972,117590.0,117580.0,0.49195152]
[1753505697711,0.50242384,117590.0,117580.0,0.49195152]
[1753505697956,0.51979965,117590.0,117580.0,0.50045615]
[1753505698392,0.52830362,117590.0,117580.0,0.50045622]
[1753505698613,0.52930362,117590.0,117580.0,0.50045629]
[1753505698841,0.52930362,117590.0,117580.0,0.50896099]
[1753505699984,0.52930362,117590.0,117580.0,0.50045629]
[1753505701347,0.52930362,117590.0,117580.0,0.50896099]
[1753505701572,0.52930362,117590.0,117580.0,0.50045629]
[1753505702001,0.53780774,117590.0,117580.0,0.50045629]
[1753505702210,0.52930362,117590.0,117580.0,0.50045629]
[1753505702614,0.53780774,117590.0,117580.0,0.50045629]
[1753505702868,0.52930362,117590.0,117580.0,0.50045629]
[1753505703291,0.53780774,117590.0,117580.0,0.49195152]
[1753505704174,0.53780774,117590.0,117580.0,0.48344668]
[1753505704175,0.5293042,117590.0,117580.0,0.48344668]
[1753505705154,0.71528669,117590.0,117580.0,0.48344668]
[1753505705518,0.71528669,117590.0,117580.0,0.19946695]
[1753505705729,0.70678293,117590.0,117580.0,0.48344668]
[1753505706903,0.70678293,117590.0,117580.0,0.19946695]
[1753505707225,0.70678293,117590.0,117580.0,0.20797179]
[1753505707469,0.53670044,117590.0,117580.0,0.20797179]
[1753505708290,0.51229632,117590.0,117580.0,0.20797179]
[1753505708494,0.52080044,117590.0,117580.0,0.20797179]
[1753505709053,0.52080044,117590.0,117580.0,0.19946695]
[1753505709879,0.52080044,117590.0,117580.0,0.48344668]
[1753505711444,0.52080044,117590.0,117580.0,0.19946695]
[1753505714293,0.49690044,117590.0,117580.0,0.19946695]
[1753505714547,0.49492044,117590.0,117580.0,0.20797179]
[1753505714958,0.49492044,117590.0,117580.0,0.19946695]
[1753505715590,0.52080044,117590.0,117580.0,0.19946695]
[1753505715793,0.68237903,117590.0,117580.0,0.19946695]
[1753505725960,0.48641618,117590.0,117580.0,0.50805145]
[1753505726165,0.49492023,117590.0,117580.0,0.50805145]
[1753505726607,0.48641575,117590.0,117580.0,0.52506063]
[1753505726826,0.47791199,117590.0,117580.0,0.54136063]
[1753505727059,0.48641568,117590.0,117580.0,0.54136063]
[1753505727237,0.49491951,117590.0,117580.0,0.54136063]
[1753505727387,0.47791199,117590.0,117580.0,0.63046152]
[1753505727590,0.48641575,117590.0,117580.0,0.54986511]
[1753505728221,0.47791192,117590.0,117580.0,0.55836945]
[1753505728423,0.34104845,117590.0,117580.0,0.55836945]
[1753505728644,0.46940845,117590.0,117580.0,0.55836945]
[1753505730208,0.12940845,117590.0,117580.0,0.55836945]
[1753505732655,0.00104845,117590.0,117580.0,0.55836945]
[1753505735140,0.00104845,117590.0,117580.0,0.27438972]
[1753505735346,0.00104845,117590.0,117580.0,0.55836945]
[1753505738785,0.00955192,117590.0,117580.0,0.55836945]
[1753505739421,0.00104845,117590.0,117580.0,0.55836945]
[1753505743082,4.845e-05,117590.0,117580.0,0.55836945]
[1753505743298,4.845e-05,117590.0,117580.0,0.55936945]
[1753505744603,4.845e-05,117590.0,117580.0,0.56236945]
[1753505749322,4.845e-05,117590.0,117580.0,0.69068945]
[1753505770848,4.845e-05,117590.0,117580.0,0.40670972]
[1753505770986,4.845e-05,117590.0,117580.0,0.69068945]
[1753505785300,4.845e-05,117590.0,117580.0,0.67438945]
[1753505785740,4.845e-05,117590.0,117580.0,0.65828945]
[1753505792857,4.845e-05,117590.0,117580.0,0.37430972]
[1753505793068,4.845e-05,117590.0,117580.0,0.65828945]
[1753505798660,4.845e-05,117590.0,117580.0,0.67358945]
[1753505802342,4.845e-05,117590.0,117580.0,0.65828945]
[1753505813259,4.845e-05,117590.0,117580.0,0.37430972]
[1753505813469,4.845e-05,117590.0,117580.0,0.65828945]
[1753505828454,4.845e-05,117590.0,117580.0,0.37430972]
[1753505828670,4.845e-05,117590.0,117580.0,0.65828945]
[1753505829942,4.845e-05,117590.0,117580.0,0.37430972]
[1753505830158,4.845e-05,117590.0,117580.0,0.65828945]
[1753505839273,4.845e-05,117590.0,117580.0,0.59828945]
[1753505854795,4.845e-05,117590.0,117580.0,0.31430972]
[1753505855038,4.845e-05,117590.0,117580.0,0.59828945]
[1753505864232,4.845e-05,117590.0,117580.0,0.31430972]
[1753505864471,4.845e-05,117590.0,117580.0,0.59828945]
[1753505875554,4.845e-05,117590.0,117580.0,0.31430972]
[1753505875776,4.845e-05,117590.0,117580.0,0.59828945]
[1753505881415,4.845e-05,117590.0,117580.0,0.31430972]
[1753505881613,4.845e-05,117590.0,117580.0,0.59828945]
[1753505890396,4.845e-05,117590.0,117580.0,0.31430972]
[1753505890535,4.845e-05,117590.0,117580.0,0.59828945]
[1753505927488,4.845e-05,117590.0,117580.0,0.31430972]
[1753505927697,4.845e-05,117590.0,117580.0,0.59828945]
[1753505937305,4.845e-05,117590.0,117580.0,0.71316675]
[1753505949397,4.845e-05,117590.0,117580.0,0.69796675]
[1753505950194,4.845e-05,117590.0,117580.0,0.68276675]
[1753505950810,4.845e-05,117590.0,117580.0,0.69926675]
[1753505951251,4.845e-05,117590.0,117580.0,0.68276675]
[1753505965096,4.845e-05,117590.0,117580.0,0.39878702]
[1753505965300,4.845e-05,117590.0,117580.0,0.68276675]
[1753505965578,4.845e-05,117590.0,117580.0,0.39878702]
[1753505965792,4.845e-05,117590.0,117580.0,0.68276675]
[1753505966004,4.845e-05,117590.0,117580.0,0.68260675]
[1753505970602,4.845e-05,117590.0,117580.0,0.39862702]
[1753505970810,4.845e-05,117590.0,117580.0,0.55444675]
[1753505971013,4.845e-05,117590.0,117580.0,0.68260675]
[1753505977277,4.845e-05,117590.0,117580.0,0.55444675]
[1753505977507,4.845e-05,117590.0,117580.0,0.68264675]
[1753505985048,4.845e-05,117590.0,117580.0,0.70009577]
[1753505989937,4.845e-05,117590.0,117580.0,0.70013577]
[1753505996550,4.845e-05,117590.0,117580.0,0.41615604]
[1753505996772,4.845e-05,117590.0,117580.0,0.70013577]
[1753506002809,4.845e-05,117590.0,117580.0,0.71603577]
[1753506005163,4.845e-05,117590.0,117580.0,0.58779577]
[1753506005403,4.845e-05,117590.0,117580.0,0.71603577]
[1753506011757,4.845e-05,117590.0,117580.0,0.73123577]
[1753506012383,4.845e-05,117590.0,117580.0,0.44725604]
[1753506012602,4.845e-05,117590.0,117580.0,0.71603577]
[1753506013457,0.02026708,117600.0,117590.0,0.213043]
[1753506013580,0.06273708,117600.0,117590.0,0.62526273]
[1753506013765,0.06258611,117600.0,117590.0,0.65131273]
[1753506013971,0.06258611,117600.0,117590.0,0.65334273]
[1753506015684,0.06323247,117600.0,117590.0,0.65334273]
[1753506016312,0.06298016,117600.0,117590.0,0.65334273]
[1753506016527,0.06282919,117600.0,117590.0,0.65334273]
[1753506016697,0.06275421,117600.0,117590.0,0.52510273]
[1753506016899,0.06275421,117600.0,117590.0,0.65334273]
[1753506018234,0.06275421,117600.0,117590.0,0.52510273]
[1753506018459,0.06275421,117600.0,117590.0,0.65334273]
[1753506021488,0.07125696,117600.0,117590.0,0.65334273]
[1753506021677,0.06275421,117600.0,117590.0,0.65334273]
[1753506021862,0.07125696,117600.0,117590.0,0.65334273]
[1753506022076,0.06275421,117600.0,117590.0,0.65334273]
[1753506022277,0.06252828,117600.0,117590.0,0.65334273]
[1753506022591,0.03843828,117600.0,117590.0,0.65334273]
[1753506023703,0.04694103,117600.0,117590.0,0.65334273]
[1753506024365,0.03843828,117600.0,117590.0,0.65334273]
[1753506027053,0.03826199,117600.0,117590.0,0.65334273]
[1753506027705,0.03821235,117600.0,117590.0,0.65334273]
[1753506028102,0.04671517,117600.0,117590.0,0.65334273]
[1753506028279,0.03770676,117600.0,117590.0,0.65334273]
[1753506028702,0.03720117,117600.0,117590.0,0.65334273]
[1753506031689,0.03522117,117600.0,117590.0,0.65334273]
[1753506032078,0.03522117,117600.0,117590.0,0.52510273]
[1753506032210,0.03522117,117600.0,117590.0,0.65326273]